bitfinex-derivatives/quotes_SOLF0:USTF0_20240924
["timestamp","ask_amount","ask_price","bid_price","bid_amount"]
[1727191724666,8.42,145.77,145.75,3.4306]
[1727191725056,8.42,145.76,145.75,3.4306]
[1727191725267,3.4302,145.77,145.7,2.7199]
[1727191725471,8.42,145.75,145.7,11.1399]
[1727191725863,8.42,145.75,145.74,3.4309]
[1727191726361,83.80417053,145.85,145.74,3.4309]
[1727191726565,8.42,145.75,145.74,3.4309]
[1727191726754,83.80417053,145.85,145.71,8.42]
[1727191726755,8.42,145.76,145.71,8.42]
[1727191726960,8.42,145.76,145.75,3.4306]
[1727191727369,8.42,145.77,145.76,3.4302]
[1727191728163,8.42,145.77,145.72,8.42]
[1727191728464,8.42,145.75,145.71,8.42]
[1727191728671,83.80417053,145.85,145.71,8.42]
[1727191728965,8.42,145.76,145.72,8.42]
[1727191729263,8.42,145.78,145.73,8.42]
[1727191729569,8.42,145.78,145.76,3.4303]
[1727191731667,8.42,145.77,145.76,3.4303]
[1727191731969,8.42,145.77,145.75,3.4305]
[1727191732164,83.80417053,145.85,145.7,2.7199]
[1727191732372,3.43,145.78,145.74,3.4308]
[1727191732561,8.42,145.76,145.71,8.42]
[1727191732762,8.42,145.77,145.72,9.7196]
[1727191733060,8.42,145.77,145.75,3.4305]
[1727191733570,8.42,145.76,145.7,9.7858]
[1727191733767,8.42,145.76,145.7,11.0854]
[1727191734671,11.8505,145.76,145.73,3.431]
[1727191734871,3.4305,145.76,145.7,2.6654]
[1727191735170,8.42,145.73,145.7,2.6654]
[1727191735358,8.42,145.73,145.72,3.4312]
[1727191735557,3.4305,145.76,145.72,3.4312]
[1727191735761,8.42,145.73,145.72,3.4312]
[1727191735958,3.4305,145.76,145.72,3.4312]
[1727191736165,8.42,145.73,145.62,4.1054]
[1727191736370,3.38572409,145.77,145.62,4.1054]
[1727191736371,251.4175,145.84,145.67,8.42]
[1727191736566,8.42,145.72,145.67,8.42]
[1727191736766,8.42,145.72,145.71,3.4316]
[1727191737768,8.42,145.72,145.62,4.1054]
[1727191737968,8.42,145.69,145.62,4.1054]
[1727191738165,8.42,145.69,145.64,8.42]
[1727191738368,8.42,145.69,145.68,3.4323]
[1727191739568,8.42,145.69,145.56,10.3052]
[1727191739569,8.42,145.69,145.6,3.41320444]
[1727191739870,8.42,145.66,145.61,8.42]
[1727191740573,8.42,145.67,145.61,8.42]
[1727191740868,8.42,145.68,145.63,8.42]
[1727191741069,8.42,145.67,145.65,3.4329]
[1727191741374,8.42,145.66,145.53,6.8714]
[1727191741579,8.42,145.61,145.6,3.4342]
[1727191741764,8.42,145.61,145.58,2.708]
[1727191741965,8.42,145.59,145.58,2.708]
[1727191742474,8.42,145.6,145.58,2.708]
[1727191742971,8.42,145.64,145.58,2.708]
[1727191743273,8.42,145.64,145.58,11.128]
[1727191743476,8.42,145.61,145.58,2.708]
[1727191744066,8.42,145.61,145.6,3.4342]
[1727191744270,27.4216,145.75,145.58,1.3018]
[1727191744472,13.19,145.64,145.58,1.3018]
[1727191744775,13.19,145.62,145.55,1.3233]
[1727191745478,13.19,145.62,145.59,3.4343]
[1727191745674,13.19,145.62,145.55,1.3233]
[1727191746980,13.19,145.59,145.49,13.19]
[1727191747272,13.19,145.58,145.51,2.6319]
[1727191748967,13.19,145.58,145.55,3.4353]
[1727191749579,16.6247,145.58,145.54,3.4356]
[1727191749779,13.19,145.55,145.33,6.859]
[1727191749975,13.19,145.52,145.42,15.9377]
[1727191750183,13.19,145.52,145.5,3.4363]
[1727191750482,13.19,145.53,145.49,3.42817869]
[1727191750778,13.19,145.53,145.46,13.19]
[1727191750981,13.19,145.53,145.47,1.3157]
[1727191751381,13.19,145.53,145.52,3.4361]
[1727191751985,13.19,145.53,145.5,3.4363]
[1727191752182,13.19,145.51,145.43,1.3157]
[1727191752979,13.19,145.51,145.49,3.4366]
[1727191753791,13.19,145.51,145.42,2.7477]
[1727191754095,13.19,145.51,145.44,1.431]
[1727191754281,13.19,145.51,145.49,3.4366]
[1727191755386,13.19,145.53,145.46,3.42843393]
[1727191755576,3.43874604,145.57,145.46,13.19]
[1727191755577,13.19,145.55,145.46,13.19]
[1727191755776,13.19,145.55,145.46,16.67033823]
[1727191756690,13.19,145.56,145.46,16.67033823]
[1727191757686,13.19,145.56,145.55,3.4354]
[1727191758194,13.19,145.56,145.46,16.67033823]
[1727191758889,13.19,145.56,145.53,3.4358]
[1727191759595,13.19,145.56,145.54,3.4356]
[1727191760294,13.19,145.56,145.55,3.4354]
[1727191760997,13.19,145.56,145.46,16.67033823]
[1727191762297,13.19,145.56,145.54,3.4356]
[1727191762496,16.6255,145.55,145.46,3.48033823]
[1727191762796,16.5573609,145.6,145.46,13.19]
[1727191762797,13.19,145.57,145.46,13.19]
[1727191763094,13.19,145.57,145.46,16.6994171]
[1727191763291,3.4348,145.58,145.46,16.6994171]
[1727191763482,82.42,145.64,145.5,13.19]
[1727191763682,13.19,145.6,145.51,4.0596]
[1727191763890,13.19,145.6,145.51,7.57623458]
[1727191764097,13.19,145.58,145.51,7.57623458]
[1727191764684,16.6248,145.58,145.55,3.4352]
[1727191765291,13.19,145.58,145.56,3.4349]
[1727191766095,13.19,145.58,145.55,3.4353]
[1727191766493,13.19,145.58,145.56,3.4351]
[1727191770101,16.6247,145.58,145.55,3.4353]
[1727191770300,13.19,145.58,145.51,4.0596]
[1727191770494,13.19,145.58,145.51,7.41320824]
[1727191770696,13.19,145.58,145.57,3.4349]
[1727191772804,13.19,145.58,145.56,3.435]
[1727191773797,13.19,145.58,145.57,3.4349]
[1727191774401,16.6247,145.58,145.55,3.4353]
[1727191774707,13.19,145.58,145.51,7.41320824]
[1727191775207,13.19,145.58,145.56,3.435]
[1727191776407,13.19,145.58,145.57,3.4349]
[1727191779408,16.6243,145.6,145.57,3.4349]
[1727191779710,11.64306004,145.59,145.57,3.4349]
[1727191779911,13.19,145.58,145.51,7.41320824]
[1727191780509,8.45,145.57,145.53,8.45]
[1727191780910,8.45,145.57,145.56,3.4351]
[1727191782500,8.45,145.57,145.51,7.41320824]
[1727191782501,8.45,145.57,145.51,4.0596]
[1727191782810,8.45,145.55,145.51,4.0596]
[1727191783510,3.4339,145.62,145.54,8.45]
[1727191783705,8.45,145.6,145.56,8.45]
[1727191784210,8.45,145.6,145.59,3.4344]
[1727191784714,8.45,145.61,145.6,3.4342]
[1727191785103,8.45,145.61,145.59,3.4343]
[1727191785303,8.45,145.6,145.54,8.45]
[1727191785508,8.45,145.58,145.53,1.4241]
[1727191785709,8.45,145.58,145.57,3.4348]
[1727191786310,13.2,145.59,145.57,3.4348]
[1727191787619,16.6346,145.59,145.56,3.4351]
[1727191788426,3.4347,145.58,145.56,3.4351]
[1727191788816,3.4347,145.58,145.55,3.4353]
[1727191789921,16.6349,145.57,145.55,3.4353]
[1727191790123,13.2,145.57,145.55,3.4353]
[1727191790317,13.2,145.57,145.54,3.4355]
[1727191790517,13.2,145.55,145.51,2.752]
[1727191790924,13.2,145.55,145.54,3.4356]
[1727191791625,13.2,145.57,145.51,2.752]
[1727191791829,13.2,145.59,145.51,2.752]
[1727191792727,16.6344,145.59,145.51,2.752]
[1727191793225,13.2,145.59,145.57,3.4348]
[1727191794636,13.2,145.59,145.51,2.752]
[1727191794934,13.2,145.56,145.51,2.752]
[1727191796930,13.2,145.56,145.55,3.4354]
[1727191797635,16.6352,145.56,145.54,3.4355]
[1727191799127,13.2,145.56,145.51,2.752]
[1727191800236,13.2,145.56,145.55,3.4354]
[1727191800439,13.2,145.59,145.51,2.752]
[1727191800832,16.6346,145.59,145.56,3.435]
[1727191801929,16.6346,145.59,145.57,3.4348]
[1727191802226,13.2,145.61,145.51,15.952]
[1727191802740,13.2,145.61,145.51,2.752]
[1727191802741,13.2,145.57,145.51,2.752]
[1727191803235,13.2,145.57,145.56,3.4351]
[1727191803438,13.2,145.6,145.51,2.752]
[1727191803742,16.6343,145.6,145.57,3.4347]
[1727191805536,16.6343,145.6,145.58,3.4346]
[1727191806540,16.6343,145.6,145.57,3.4347]
[1727191810336,8.45,145.58,145.57,3.4347]
[1727191811039,11.8847,145.58,145.56,3.4351]
[1727191811338,8.45,145.57,145.56,3.4351]
[1727191811542,8.45,145.57,145.55,3.4353]
[1727191811743,8.45,145.56,145.55,3.4353]
[1727191811941,8.45,145.56,145.51,11.202]
[1727191812136,8.45,145.54,145.51,2.752]
[1727191812348,16.6449,145.57,145.51,2.752]
[1727191812648,3.4352,145.56,145.51,2.752]
[1727191813143,13.21,145.55,145.53,3.4357]
[1727191813539,13.21,145.55,145.51,1.4385]
[1727191814243,13.21,145.6,145.51,1.4385]
[1727191814244,13.21,145.57,145.51,1.4385]
[1727191814436,3.37044673,145.62,145.51,1.4385]
[1727191814437,13.21,145.59,145.51,1.4385]
[1727191814635,13.21,145.61,145.52,14.5243]
[1727191814839,93.71141963,145.68,145.52,14.5243]
[1727191814840,26.08294828,145.67,145.59,3.4344]
[1727191815143,13.21,145.62,145.53,13.21]
[1727191815339,13.21,145.62,145.52,8.1862]
[1727191815340,14.16322728,145.65,145.55,13.21]
[1727191815542,25.129721,145.66,145.57,13.21]
[1727191815841,13.21,145.66,145.58,2.7521]
[1727191816048,13.21,145.66,145.58,6.17112667]
[1727191817039,16.6429,145.66,145.63,3.4334]
[1727191817445,13.21,145.66,145.64,3.4332]
[1727191817645,80.50141963,145.68,145.64,3.4332]
[1727191817845,80.50141963,145.68,145.59,13.21]
[1727191818144,80.50141963,145.68,145.6,1.4195]
[1727191818339,80.50141963,145.68,145.61,13.21]
[1727191818535,80.50141963,145.68,145.67,3.4325]
[1727191819142,80.50141963,145.68,145.66,3.4327]
[1727191819448,93.71141963,145.68,145.6,1.4195]
[1727191819948,97.14391963,145.68,145.64,3.433]
[1727191820146,16.6425,145.68,145.64,3.433]
[1727191820342,16.6425,145.68,145.6,1.4195]
[1727191820546,16.6425,145.68,145.65,3.433]
[1727191820944,16.6425,145.68,145.6,1.4195]
[1727191821151,3.4326,145.67,145.64,3.4332]
[1727191821350,3.41004077,145.72,145.56,11.0754259]
[1727191821543,13.21,145.65,145.56,3.4126635]
[1727191821852,13.21,145.65,145.55,2.8357]
[1727191822649,3.4333,145.64,145.61,3.4338]
[1727191823050,3.4338,145.62,145.55,2.8357]
[1727191823253,13.21,145.65,145.56,3.44254492]
[1727191823952,3.4334,145.64,145.56,3.44254492]
[1727191824652,3.4334,145.64,145.6,3.4341]
[1727191824854,16.56680122,145.65,145.55,2.8357]
[1727191825553,3.4337,145.62,145.55,2.8357]
[1727191825753,16.6437,145.62,145.55,2.8357]
[1727191826353,3.434,145.61,145.55,2.8357]
[1727191826557,13.21,145.62,145.55,2.8357]
[1727191826743,3.35680122,145.65,145.55,6.2708]
[1727191826945,13.21,145.68,145.55,2.8357]
[1727191826946,13.21,145.6,145.55,2.8357]
[1727191827654,16.6443,145.6,145.55,2.8357]
[1727191827854,16.6443,145.6,145.57,3.4347]
[1727191830049,13.21,145.6,145.58,3.4346]
[1727191830254,3.434,145.61,145.58,3.4346]
[1727191830449,13.21,145.62,145.55,2.8357]
[1727191830753,13.21,145.63,145.59,3.4343]
[1727191831349,3.4338,145.62,145.59,3.4343]
[1727191831549,13.21,145.62,145.58,3.4346]
[1727191831750,13.21,145.62,145.55,2.8357]
[1727191832052,3.4343,145.6,145.57,3.4349]
[1727191832246,13.21,145.62,145.57,3.4349]
[1727191832455,3.4344,145.59,145.55,2.8357]
[1727191832652,6.8639,145.7,145.55,2.8357]
[1727191832653,327.0,145.73,145.56,16.67814968]
[1727191832854,13.21,145.66,145.56,16.67814968]
[1727191833054,3.4335,145.63,145.56,13.21]
[1727191833255,13.21,145.62,145.55,2.8357]
[1727191833654,3.434,145.61,145.55,2.8357]
[1727191834161,3.434,145.61,145.58,3.4345]
[1727191835764,3.4343,145.6,145.57,3.4347]
[1727191835951,13.21,145.6,145.53,1.3828]
[1727191836350,16.6443,145.6,145.53,1.3828]
[1727191836550,13.21,145.62,145.53,1.3828]
[1727191836964,16.6439,145.62,145.53,1.3828]
[1727191837160,13.21,145.64,145.54,13.21]
[1727191837762,3.4338,145.62,145.59,3.4343]
[1727191839165,3.434,145.61,145.58,3.4346]
[1727191840271,3.4343,145.6,145.57,3.4348]
[1727191840464,13.21,145.62,145.53,1.3828]
[1727191840671,13.21,145.6,145.53,1.3828]
[1727191841570,3.4346,145.59,145.56,3.4351]
[1727191842468,3.4347,145.58,145.55,3.4352]
[1727191842969,16.6447,145.58,145.55,3.4352]
[1727191843765,16.6447,145.58,145.56,3.4351]
[1727191843972,13.21,145.58,145.56,3.4351]
[1727191845371,16.6447,145.58,145.56,3.4351]
[1727191845573,13.21,145.58,145.57,3.4349]
[1727191845871,13.21,145.58,145.5,15.8229]
[1727191846261,13.21,145.58,145.55,3.4352]
[1727191846462,16.6447,145.58,145.51,6.94082798]
[1727191846667,16.6447,145.58,145.5,15.8229]
[1727191846973,16.6447,145.58,145.55,3.4351]
[1727191847675,16.6447,145.58,145.56,3.4351]
[1727191848370,8.45,145.57,145.56,3.4351]
[1727191848871,8.45,145.57,145.5,2.6129]
[1727191849076,14.14388567,145.66,145.56,8.45]
[1727191849266,8.45,145.61,145.56,8.45]
[1727191850163,8.45,145.62,145.57,8.45]
[1727191850476,8.45,145.62,145.58,8.45]
[1727191850668,8.45,145.62,145.6,3.434]
[1727191852376,3.4333,145.64,145.6,3.434]
[1727191853274,3.4333,145.64,145.56,13.19]
[1727191853275,16.6232,145.65,145.61,3.4338]
[1727191853475,13.19,145.65,145.57,2.7824]
[1727191853676,13.19,145.63,145.57,2.7824]
[1727191854068,13.19,145.63,145.57,1.4001]
[1727191854376,3.4338,145.62,145.58,3.4345]
[1727191857677,3.4338,145.62,145.59,3.4344]
[1727191857873,3.4338,145.62,145.57,1.4001]
[1727191858780,13.19,145.61,145.58,3.4345]
[1727191859079,13.19,145.63,145.57,1.4001]
[1727191859474,16.6237,145.63,145.57,1.4001]
[1727191859779,16.6237,145.63,145.59,3.4343]
[1727191861181,13.19,145.63,145.57,1.4001]
[1727191861380,13.19,145.65,145.57,1.4001]
[1727191862170,3.4333,145.64,145.57,1.4001]
[1727191862775,3.4333,145.64,145.61,3.4339]
[1727191863682,15.41697482,145.66,145.57,1.4001]
[1727191863683,11.90154845,145.66,145.57,1.4001]
[1727191864181,15.33444845,145.66,145.62,3.4335]
[1727191864387,15.33444845,145.66,145.57,1.4001]
[1727191864681,15.33444845,145.66,145.63,3.4335]
[1727191864887,11.90154845,145.66,145.59,13.19]
[1727191865080,97.13842801,145.67,145.6,1.4016]
[1727191865282,97.13842801,145.67,145.64,3.4331]
[1727191865472,97.13842801,145.67,145.6,1.4016]
[1727191865473,93.70582801,145.67,145.6,1.4016]
[1727191865674,80.51582801,145.67,145.6,1.4016]
[1727191866393,13.19,145.69,145.65,3.4329]
[1727191866680,13.19,145.69,145.6,14.5916]
[1727191866881,13.19,145.71,145.6,14.5916]
[1727191867286,13.19,145.71,145.67,3.4324]
[1727191867885,3.432,145.7,145.67,3.4324]
[1727191868296,3.432,145.7,145.6,14.5916]
[1727191868297,13.19,145.71,145.62,13.19]
[1727191868587,13.19,145.71,145.63,1.3039]
[1727191868788,13.19,145.71,145.63,2.6258]
[1727191869893,16.6217,145.71,145.63,2.6258]
[1727191870893,16.6217,145.71,145.67,3.4324]
[1727191871794,16.6217,145.71,145.68,3.4322]
[1727191872598,3.4319,145.7,145.67,3.4325]
[1727191874394,8.44,145.69,145.67,3.4325]
[1727191875597,8.44,145.69,145.64,8.44]
[1727191875990,11.8721,145.69,145.64,8.44]
[1727191876297,8.44,145.69,145.64,8.44]
[1727191876597,8.44,145.69,145.67,3.4324]
[1727191877395,3.4319,145.7,145.67,3.4324]
[1727191877694,11.8719,145.7,145.67,3.4324]
[1727191880895,82.44,145.82,145.67,8.44]
[1727191881097,82.44,145.82,145.63,2.6258]
[1727191881098,8.44,145.73,145.68,8.44]
[1727191881302,8.44,145.72,145.66,9.7429]
[1727191881600,46.19849033,145.8,145.63,2.6258]
[1727191881601,46.19849033,145.8,145.65,8.44]
[1727191881799,46.19849033,145.8,145.64,8.44]
[1727191881800,8.44,145.69,145.64,8.44]
[1727191882198,8.44,145.69,145.63,2.6258]
[1727191882506,8.44,145.69,145.64,8.44]
[1727191882799,11.8721,145.69,145.66,3.4326]
[1727191882996,8.44,145.68,145.66,3.4326]
[1727191883202,11.8724,145.68,145.65,3.4329]
[1727191883993,8.44,145.66,145.64,3.4331]
[1727191885093,8.44,145.66,145.65,3.433]
[1727191885594,8.44,145.66,145.64,3.4331]
[1727191885788,8.44,145.69,145.64,8.44]
[1727191886189,8.44,145.69,145.67,3.4324]
[1727191887289,11.8721,145.69,145.67,3.4324]
[1727191888903,8.44,145.69,145.67,3.4324]
[1727191894809,11.8719,145.7,145.67,3.4324]
[1727191895199,11.8719,145.7,145.68,3.4323]
[1727191897204,8.44,145.7,145.68,3.4323]
[1727191897594,11.8717,145.71,145.69,3.4321]
[1727191898000,11.8717,145.71,145.68,3.4322]
[1727191899011,6.8599,145.79,145.69,8.44]
[1727191899209,8.44,145.74,145.7,8.44]
[1727191899711,11.871,145.74,145.71,3.4314]
[1727191902210,3.4303,145.77,145.72,8.44]
[1727191903117,3.43666357,145.78,145.63,16.41189113]
[1727191903304,8.44,145.72,145.68,8.44]
[1727191904211,8.44,145.72,145.7,3.4318]
[1727191905119,8.44,145.74,145.69,8.44]
[1727191905304,8.44,145.74,145.64,3.39512148]
[1727191905305,8.44,145.74,145.7,8.44]
[1727191907004,8.44,145.74,145.68,2.7942]
[1727191907203,8.44,145.74,145.69,8.44]
[1727191907401,11.8709,145.74,145.71,3.4315]
[1727191908015,8.44,145.74,145.72,3.4313]
[1727191908915,8.44,145.75,145.73,3.4311]
[1727191909622,8.44,145.75,145.72,3.4313]
[1727191910318,251.4856,145.88,145.72,8.44]
[1727191910517,1.07993875,145.84,145.73,8.44]
[1727191910718,8.44,145.78,145.73,8.44]
[1727191911112,11.87,145.78,145.75,3.4305]
[1727191912515,11.8703,145.77,145.74,3.4309]
[1727191914218,8.44,145.75,145.74,3.4309]
[1727191914423,8.44,145.75,145.7,8.44]
[1727191915313,8.44,145.75,145.72,3.4312]
[1727191916622,3.4303,145.77,145.72,8.44]
[1727191916824,11.8703,145.77,145.73,8.44]
[1727191917620,11.8703,145.77,145.74,3.4307]
[1727191918525,8.44,145.77,145.73,8.44]
[1727191919724,8.44,145.77,145.75,3.4304]
[1727191920822,8.44,145.76,145.68,2.7942]
[1727191921122,8.44,145.76,145.7,8.44]
[1727191921333,11.8706,145.76,145.73,3.431]
[1727191921622,11.8706,145.76,145.7,8.44]
[1727191922016,8.44,145.76,145.72,8.44]
[1727191922225,8.44,145.77,145.73,8.44]
[1727191922625,8.44,145.77,145.75,3.4305]
[1727191922928,8.44,145.77,145.73,8.44]
[1727191923132,8.44,145.8,145.75,8.44]
[1727191923724,11.8695,145.8,145.77,3.43]
[1727191925228,8.44,145.78,145.72,8.44]
[1727191926932,11.8699,145.78,145.75,3.4305]
[1727191928821,8.44,145.76,145.75,3.4305]
[1727191933334,11.8696,145.8,145.75,8.44]
[1727191933535,11.8696,145.8,145.76,8.44]
[1727191933936,11.8696,145.8,145.77,3.43]
[1727191935041,8.44,145.8,145.76,8.44]
[1727191936338,11.8695,145.8,145.77,3.4301]
[1727191938539,8.44,145.78,145.69,6.8641]
[1727191938739,8.44,145.76,145.71,8.44]
[1727191939838,8.44,145.76,145.74,3.4307]
[1727191940231,3.4301,145.78,145.72,8.44]
[1727191940431,8.44,145.78,145.73,8.44]
[1727191941134,11.87,145.78,145.73,8.44]
[1727191941639,8.44,145.77,145.75,3.4306]
[1727191941843,8.44,145.76,145.71,8.44]
[1727191942741,8.44,145.76,145.74,3.4307]
[1727191947042,8.44,145.76,145.75,3.4307]
[1727191948347,11.87,145.78,145.75,3.4307]
[1727191948647,80.50023942,145.85,145.76,8.44]
[1727191948838,8.44,145.8,145.76,8.44]
[1727191949344,11.8696,145.8,145.77,3.43]
[1727191949737,8.44,145.8,145.76,8.44]
[1727191949942,8.44,145.8,145.75,1.3407]
[1727191949943,80.50023942,145.85,145.77,8.44]
[1727191950247,8.44,145.82,145.77,8.44]
[1727191950945,3.4293,145.81,145.78,3.4298]
[1727191951347,8.44,145.82,145.77,8.44]
[1727191951549,80.50023942,145.85,145.81,8.44]
[1727191951733,8.44,145.86,145.81,8.44]
[1727191951940,11.8683,145.86,145.83,3.4287]
[1727191952141,8.44,145.86,145.83,3.4287]
[1727191954447,11.8681,145.86,145.83,3.4287]
[1727191955250,3.37656437,145.9,145.82,8.44]
[1727191955545,8.44,145.89,145.84,8.44]
[1727191955756,8.44,145.91,145.85,8.44]
[1727191955959,8.44,145.91,145.87,11.8677]
[1727191955960,1.07899309,145.9,145.87,11.8677]
[1727191956460,3.4267,145.92,145.88,3.4276]
[1727191956659,1.07888626,145.91,145.88,3.4276]
[1727191957061,4.50578626,145.91,145.87,11.8677]
[1727191957362,11.8669,145.91,145.87,11.8677]
[1727191958764,3.4267,145.92,145.88,3.4276]
[1727191958967,11.8667,145.92,145.88,3.4276]
[1727191961764,3.427,145.91,145.88,3.4276]
[1727191969466,3.4267,145.92,145.89,3.4274]
[1727191970270,11.8669,145.91,145.88,3.4275]
[1727191971268,3.38921634,145.94,145.85,12.5302]
[1727191971474,8.44,145.9,145.85,4.0902]
[1727191971675,8.44,145.9,145.85,12.5302]
[1727191972076,11.8673,145.9,145.85,4.0902]
[1727191972374,11.8673,145.9,145.86,8.44]
[1727191972773,3.4273,145.9,145.86,8.44]
[1727191973075,3.4273,145.9,145.87,3.4278]
[1727191974873,8.44,145.89,145.86,8.44]
[1727191975182,8.44,145.89,145.84,3.4284]
[1727191975183,8.44,145.88,145.84,3.4284]
[1727191975682,11.8677,145.88,145.85,3.4282]
[1727191977075,3.4274,145.9,145.86,8.44]
[1727191977274,8.44,145.92,145.88,8.44]
[1727191977580,8.44,145.93,145.89,8.44]
[1727191977781,12.9456292,145.92,145.88,8.44]
[1727191977979,11.8668,145.92,145.88,8.44]
[1727191978371,11.8668,145.92,145.88,11.8675]
[1727191978573,3.4269,145.91,145.88,11.8675]
[1727191979382,11.8669,145.91,145.86,8.44]
[1727191980881,11.8669,145.91,145.88,3.4275]
[1727191981177,8.44,145.91,145.88,3.4275]
[1727191981377,3.4268,145.92,145.88,8.44]
[1727191981378,11.8668,145.92,145.88,8.44]
[1727191982277,3.4262,145.94,145.89,8.44]
[1727191982481,11.8662,145.94,145.89,8.44]
[1727191983178,3.41424946,145.96,145.85,4.0968]
[1727191983382,8.44,145.91,145.88,8.44]
[1727191983679,8.44,145.91,145.85,4.0968]
[1727191983976,8.44,145.89,145.85,2.7415]
[1727191984578,6.8505,145.99,145.83,8.44]
[1727191984579,3.4277,145.88,145.83,8.44]
[1727191984883,3.42545604,145.91,145.83,8.44]
[1727191984884,8.44,145.87,145.83,8.44]
[1727191985270,8.44,145.88,145.84,8.44]
[1727191985474,8.44,145.88,145.8,4.062]
[1727191985475,11.8672,145.9,145.87,3.4278]
[1727191985776,3.4272,145.9,145.87,3.4278]
[1727191985981,3.4275,145.89,145.8,4.062]
[1727191986283,3.4275,145.89,145.83,8.44]
[1727191986284,11.8675,145.89,145.83,8.44]
[1727191986773,3.4277,145.88,145.8,4.062]
[1727191987083,11.8677,145.88,145.83,8.44]
[1727191987286,11.8677,145.88,145.85,3.4282]
[1727191988780,3.4275,145.89,145.86,11.868]
[1727191988971,8.44,145.91,145.86,8.44]
[1727191989281,3.4273,145.9,145.86,8.44]
[1727191989478,3.4273,145.9,145.86,11.8679]
[1727191989675,3.4273,145.9,145.86,8.44]
[1727191990079,3.4273,145.9,145.87,3.4278]
[1727191990480,3.4274,145.89,145.8,4.062]
[1727191990692,11.8674,145.89,145.85,11.8681]
[1727191991082,3.4276,145.88,145.85,11.8681]
[1727191991280,8.44,145.88,145.84,3.4285]
[1727191991585,8.44,145.88,145.84,8.44]
[1727191992086,3.4274,145.89,145.85,3.4281]
[1727191992288,11.8674,145.89,145.85,3.4281]
[1727191992479,3.4276,145.88,145.85,3.4281]
[1727191992784,3.40751443,145.91,145.83,8.44]
[1727191992978,8.44,145.88,145.83,8.44]
[1727191993485,11.8678,145.88,145.84,3.4284]
[1727191994888,3.4278,145.87,145.84,3.4284]
[1727191995086,8.44,145.88,145.83,8.44]
[1727191995879,8.44,145.88,145.85,3.4281]
[1727191996391,8.44,145.91,145.86,8.44]
[1727191996985,3.4273,145.9,145.86,11.8679]
[1727191999392,3.4273,145.9,145.87,3.4278]
[1727192001189,8.44,145.91,145.86,11.868]
[1727192001190,3.4274,145.89,145.86,11.868]
[1727192002595,11.8674,145.89,145.86,3.428]
[1727192004092,11.8673,145.9,145.87,3.4278]
[1727192006495,8.44,145.88,145.8,4.062]
[1727192006795,8.44,145.88,145.83,8.44]
[1727192006987,11.8677,145.88,145.84,3.4284]
[1727192007795,3.4274,145.9,145.84,8.44]
[1727192007999,8.44,145.91,145.85,8.44]
[1727192008196,8.44,145.89,145.8,4.062]